bitfinex-derivatives/quotes_SOLF0:USTF0_20220110
["timestamp","ask_amount","ask_price","bid_price","bid_amount"]
[1641849989212,1.855,134.71,134.64,18.15582372]
[1641849989614,1.855,134.71,134.64,89.70472372]
[1641849990214,27.66479,134.72,134.64,89.70472372]
[1641849990414,9.93760646,134.74,134.65,28.3322013]
[1641849990415,1.856,134.71,134.65,28.3322013]
[1641849990616,1.856,134.72,134.66,27.66479]
[1641849991216,1.856,134.76,134.67,2.50852328]
[1641849991418,45.16709044,134.77,134.67,10.32952328]
[1641849991615,17.50230044,134.77,134.7,4.0]
[1641849991817,17.50230044,134.77,134.7,7.473]
[1641849991818,15.64730044,134.77,134.7,7.473]
[1641849992021,17.50230044,134.79,134.72,4.0]
[1641849992218,15.64730044,134.79,134.72,4.0]
[1641849992418,15.64730044,134.79,134.7,9.328]
[1641849992618,15.64730044,134.79,134.75,27.66479]
[1641849992818,1.855,134.78,134.73,30.17331328]
[1641849993318,4.0,134.79,134.73,30.17331328]
[1641849993517,1.855,134.78,134.73,27.66479]
[1641849994020,1.855,134.81,134.73,27.66479]
[1641849994219,1.855,134.81,134.73,33.48979]
[1641849994621,5.855,134.81,134.73,33.48979]
[1641849994920,4.0,134.78,134.73,33.48979]
[1641849995519,1.855,134.79,134.73,33.48979]
[1641849996220,4.2008123,134.78,134.73,33.48979]
[1641849996621,8.2008123,134.78,134.73,33.48979]
[1641849996822,8.2008123,134.78,134.73,27.66479]
[1641849997022,8.2008123,134.78,134.71,27.66479]
[1641849997224,1.855,134.77,134.71,27.66479]
[1641849997521,5.855,134.77,134.71,27.66479]
[1641849997722,4.0,134.75,134.71,27.66479]
[1641849998522,1.855,134.77,134.71,27.66479]
[1641850000426,1.855,134.77,134.71,33.57879]
[1641850000826,4.20127649,134.78,134.71,33.57879]
[1641850001627,4.20127649,134.78,134.72,2.50614658]
[1641850002127,4.20127649,134.78,134.72,5.89268194]
[1641850003030,4.20127649,134.78,134.72,3.38653536]
[1641850003429,4.20152911,134.76,134.72,3.38653536]
[1641850005536,4.20152911,134.76,134.71,5.914]
[1641850005737,4.20152911,134.76,134.73,3.38611016]
[1641850005937,4.20152911,134.76,134.73,10.44711016]
[1641850007037,1.855,134.8,134.73,10.44711016]
[1641850007236,43.31209044,134.81,134.73,10.44711016]
[1641850007438,15.64730044,134.81,134.73,10.44711016]
[1641850007636,15.64730044,134.81,134.75,4.0]
[1641850007836,15.64730044,134.81,134.77,4.0]
[1641850008036,15.64730044,134.82,134.77,8.457]
[1641850008436,15.64730044,134.82,134.77,12.457]
[1641850008637,15.64730044,134.82,134.8,27.66479]
[1641850008837,15.64730044,134.82,134.8,36.99479]
[1641850009038,2.71661918,134.86,134.8,27.66479]
[1641850009338,1.854,134.84,134.78,2.50345482]
[1641850009538,1.854,134.85,134.78,2.50345482]
[1641850009738,4.0,134.84,134.78,2.50345482]
[1641850009939,1.854,134.83,134.75,25.8032293]
[1641850010137,1.854,134.83,134.73,4.0]
[1641850010138,10.984,134.83,134.73,4.0]
[1641850010338,10.984,134.83,134.72,23.03340829]
[1641850010741,10.984,134.83,134.76,27.66479]
[1641850010941,4.2003889,134.8,134.76,27.66479]
[1641850011342,4.2003889,134.8,134.74,27.66479]
[1641850012141,4.0,134.79,134.74,27.66479]
[1641850012341,1.855,134.78,134.74,27.66479]
[1641850012542,1.855,134.79,134.74,27.66479]
[1641850014647,6.05557835,134.79,134.74,27.66479]
[1641850015052,10.05557835,134.79,134.74,27.66479]
[1641850015347,6.05557835,134.79,134.74,27.66479]
[1641850016350,10.05557835,134.79,134.74,27.66479]
[1641850016548,10.05557835,134.79,134.7,27.66479]
[1641850016749,15.72157835,134.79,134.7,27.66479]
[1641850017849,15.72157835,134.79,134.71,2.5052832]
[1641850018249,11.521,134.79,134.71,2.5052832]
[1641850018450,4.20104016,134.78,134.71,2.5052832]
[1641850019049,8.20104016,134.78,134.71,2.5052832]
[1641850019250,4.0,134.77,134.71,2.5052832]
[1641850019450,12.153,134.77,134.71,2.5052832]
[1641850019650,18.08941914,134.77,134.71,2.5052832]
[1641850019851,4.0,134.75,134.71,2.5052832]
[1641850020053,4.0,134.73,134.71,2.5052832]
[1641850020255,4.0,134.73,134.64,91.0]
[1641850020256,5.855,134.72,134.68,15.64730044]
[1641850020453,4.0,134.71,134.68,15.64730044]
[1641850020653,1.856,134.7,134.68,15.64730044]
[1641850020852,8.953,134.7,134.68,15.64730044]
[1641850021253,12.953,134.7,134.68,15.64730044]
[1641850021654,12.953,134.7,134.64,106.64730044]
[1641850025556,4.0,134.69,134.64,106.64730044]
[1641850026658,4.0,134.69,134.64,91.0]
[1641850027261,12.953,134.7,134.64,91.0]
[1641850027560,18.89236815,134.7,134.64,91.0]
[1641850027960,4.0,134.67,134.65,3.38783812]
[1641850028163,11.812,134.67,134.65,3.38783812]
[1641850028561,5.856,134.66,134.65,3.38783812]
[1641850028860,5.856,134.66,134.61,43.31209044]
[1641850029160,4.0,134.64,134.61,43.31209044]
[1641850029761,13.73845951,134.66,134.61,43.31209044]
[1641850029961,5.94128883,134.66,134.61,43.31209044]
[1641850030164,9.93932943,134.7,134.61,49.43809044]
[1641850030362,1.856,134.69,134.61,49.43809044]
[1641850030562,5.93932943,134.7,134.61,49.43809044]
[1641850030763,5.93932943,134.7,134.61,33.79079]
[1641850031064,5.93932943,134.7,134.65,27.66479]
[1641850031363,5.93932943,134.7,134.65,34.73279]
[1641850031564,5.93932943,134.7,134.66,3.38830002]
[1641850031766,1.856,134.72,134.66,3.38830002]
[1641850031962,7.12565996,134.73,134.66,3.38830002]
[1641850032862,1.856,134.74,134.66,3.38830002]
[1641850033062,1.855,134.76,134.66,3.38830002]
[1641850033364,26.0504815,134.77,134.66,74.67400002]
[1641850034064,4.0,134.76,134.66,90.32130046]
[1641850035064,4.0,134.76,134.68,27.66479]
[1641850035366,4.0,134.76,134.68,34.16579]
[1641850035766,4.20277739,134.72,134.68,34.16579]
[1641850036865,1.855,134.77,134.68,34.16579]
[1641850037064,1.855,134.8,134.76,55.32958]
[1641850037264,15.64730044,134.81,134.76,62.55358]
[1641850037867,17.50130044,134.87,134.76,66.55358]
[1641850038068,17.50130044,134.87,134.77,4.0]
[1641850038469,17.50130044,134.87,134.8,4.0]
[1641850038767,15.64730044,134.87,134.82,4.0]
[1641850038970,15.64730044,134.87,134.83,4.0]
[1641850039169,41.48024915,134.9,134.86,55.32958]
[1641850039170,15.64730044,134.9,134.86,55.32958]
[1641850039368,15.64730044,134.9,134.86,61.21958]
[1641850039768,15.64730044,134.9,134.86,65.21958]
[1641850040370,41.48024915,134.94,134.89,4.0]
[1641850040568,32.47218001,134.98,134.93,4.0]
[1641850040769,25.95715679,134.98,134.97,4.0]
[1641850040968,41.70188484,134.98,134.97,10.168]
[1641850041175,41.70188484,134.98,134.97,65.49758]
[1641850041370,1.70188484,134.98,134.97,65.49758]
[1641850041676,25.95715679,135.02,134.97,67.34958]
[1641850041870,25.95715679,135.02,134.98,5.851]
[1641850042073,21.19218601,135.04,134.98,1.851]
[1641850042272,21.19218601,135.04,134.97,55.32958]
[1641850042471,4.0,135.05,134.97,65.488818]
[1641850042671,4.0,135.04,134.97,65.488818]
[1641850042871,5.851,135.05,134.97,65.488818]
[1641850043073,4.0,135.04,134.97,65.488818]
[1641850043272,5.851,135.04,134.97,65.488818]
[1641850043473,4.0,135.0,134.91,1.851]
[1641850043673,1.852,134.99,134.89,77.2805]
[1641850043876,4.0,134.97,134.89,73.2805]
[1641850044075,4.0,134.97,134.87,24.0]
[1641850044076,1.852,134.96,134.87,24.0]
[1641850044472,1.852,134.96,134.88,4.0]
[1641850044673,1.852,134.99,134.89,4.0]
[1641850044873,1.852,135.01,134.89,80.104]
[1641850045075,27.66479,135.0,134.93,27.66479]
[1641850045273,1.852,135.03,134.93,35.75879]
[1641850045274,4.0,135.03,134.93,35.75879]
[1641850045473,1.852,135.02,134.93,35.75879]
[1641850046276,1.852,135.02,134.98,3.55041606]
[1641850046476,1.852,135.02,134.98,10.75141606]
[1641850046877,5.852,135.02,134.98,10.75141606]
[1641850047076,4.0,135.02,134.98,10.75141606]
[1641850047277,1.851,135.01,134.98,10.75141606]
[1641850047777,5.851,135.04,134.98,10.75141606]
[1641850047978,1.851,135.02,134.98,10.75141606]
[1641850048177,1.851,135.04,134.98,10.75141606]
[1641850048477,1.851,135.04,134.98,14.75141606]
[1641850048679,1.851,135.11,134.98,10.75141606]
[1641850048879,4.0,135.07,134.98,77.78701606]
[1641850049080,27.66479,135.06,134.98,3.55041606]
[1641850049280,29.51579,135.06,134.98,3.55041606]
[1641850049882,4.0,135.04,134.97,27.66479]
[1641850050083,6.001,135.04,134.97,27.66479]
[1641850050283,6.001,135.04,134.97,31.66479]
[1641850051084,1.851,135.09,135.02,27.66479]
[1641850051283,4.0,135.1,135.02,36.70579]
[1641850051487,4.0,135.07,135.02,36.70579]
[1641850051684,4.0,135.07,135.02,9.041]
[1641850051884,1.851,135.06,135.02,9.041]
[1641850052087,8.222,135.06,134.99,3.55077607]
[1641850052285,12.222,135.06,134.99,3.55077607]
[1641850052486,10.371,135.06,134.99,3.55077607]
[1641850052684,4.0,135.01,134.99,3.55077607]
[1641850052886,9.198,135.01,134.93,1.851]
[1641850053085,1.852,135.0,134.88,5.93081097]
[1641850053285,27.66479,135.0,134.9,27.66479]
[1641850053485,27.66479,135.0,134.9,31.66479]
[1641850053688,27.66479,135.0,134.91,4.0]
[1641850055187,27.66479,135.0,134.93,27.66479]
[1641850056388,31.66479,135.02,134.93,27.66479]
[1641850056588,27.66479,135.02,134.93,27.66479]
[1641850056888,4.19518974,135.0,134.93,27.66479]
[1641850057690,4.19518974,135.0,134.94,4.0]
[1641850057891,4.19518974,135.0,134.95,4.0]
[1641850058091,4.19518974,135.0,134.95,6.982]
[1641850058391,4.19518974,135.0,134.96,4.0]
[1641850058791,4.19518974,135.0,134.97,4.0]
[1641850059193,4.19518974,135.0,134.99,27.66479]
[1641850059392,4.19518974,135.0,134.99,36.59179]
[1641850060094,8.974e-05,135.0,134.99,36.59179]
[1641850060295,8.974e-05,135.0,134.99,8.927]
[1641850060493,4.0,135.04,134.98,27.66479]
[1641850060693,8.317,135.02,134.98,27.66479]
[1641850060893,4.19470357,134.99,134.98,27.66479]
[1641850061096,11.10708776,135.08,134.98,27.66479]
[1641850061097,2.70584656,135.03,134.98,27.66479]
[1641850061294,2.70584656,135.03,134.98,34.01079]
[1641850061694,2.70584656,135.06,134.98,34.01079]
[1641850062293,6.70584656,135.06,134.98,34.01079]
[1641850062495,2.70584656,135.06,134.98,34.01079]
[1641850063293,2.70584656,135.06,135.01,27.66479]
[1641850063494,2.70584656,135.06,135.01,36.21079]
[1641850063899,6.70584656,135.06,135.01,36.21079]
[1641850064298,6.70584656,135.06,135.01,8.546]
[1641850064498,6.70584656,135.06,134.98,27.66479]
[1641850064698,1.851,135.05,134.98,27.66479]
[1641850064900,4.0,135.03,134.98,27.66479]
[1641850065498,4.0,135.01,134.94,27.66479]
[1641850065698,5.852,135.02,134.94,27.66479]
[1641850065899,1.852,135.0,134.94,27.66479]
[1641850066200,1.852,135.01,134.94,27.66479]
[1641850066399,8.55784656,135.01,134.94,27.66479]
[1641850066602,4.55784656,135.01,134.94,27.66479]
[1641850066998,2.70584656,135.01,134.94,27.66479]
[1641850067200,4.0,135.03,134.94,27.66479]
[1641850067399,4.0,135.03,134.94,55.32958]
[1641850067999,4.0,135.03,134.95,2.51108374]
[1641850068799,4.0,135.03,134.95,6.51108374]
[1641850069202,4.19511221,135.0,134.95,2.51108374]
[1641850069402,4.19511221,135.0,134.98,27.66479]
[1641850069800,4.19511221,135.0,134.95,2.51108374]
[1641850070401,4.19511221,135.0,134.94,27.66479]
[1641850071005,4.19511221,135.0,134.95,4.19428309]
[1641850071504,8.19511221,135.0,134.95,4.19428309]
[1641850072304,4.0,134.97,134.95,4.19428309]
[1641850072504,4.0,134.96,134.95,8.309e-05]
[1641850073304,5.852,134.96,134.95,8.309e-05]
[1641850073504,33.51679,134.96,134.95,8.309e-05]
[1641850074407,36.22590252,134.96,134.95,8.309e-05]
[1641850074606,34.37390252,134.96,134.86,15.66161984]
[1641850074807,5.853,134.95,134.86,15.66161984]
[1641850075006,4.0,134.94,134.86,15.66161984]
[1641850075208,12.179,134.94,134.86,15.66161984]
[1641850075406,12.179,134.94,134.86,18.17348743]
[1641850075806,8.179,134.94,134.86,18.17348743]
[1641850076108,5.853,134.95,134.86,18.17348743]
[1641850076406,1.853,134.95,134.86,10.95786759]
[1641850077507,35.86119044,134.96,134.89,27.66479]
[1641850077710,35.86119044,134.96,134.87,2.51186759]
[1641850077908,43.84119044,134.96,134.87,2.51186759]
[1641850078107,4.0,134.95,134.86,15.66161984]
[1641850078307,5.853,134.95,134.86,15.66161984]
[1641850078708,1.853,134.95,134.86,15.66161984]
[1641850079111,1.853,134.95,134.86,2.51004824]
[1641850079310,4.19640044,134.96,134.86,8.36304824]
[1641850079508,4.19640044,134.96,134.91,27.66479]
[1641850079709,4.19640044,134.96,134.91,35.64579]
[1641850080210,8.19640044,134.96,134.91,7.981]
[1641850080409,4.0,134.96,134.91,7.981]
[1641850080609,4.19630311,134.94,134.91,7.981]
[1641850083611,4.19630311,134.94,134.92,2.50923329]
[1641850084012,4.0,134.98,134.92,2.50923329]
[1641850084412,4.0,134.97,134.91,7.981]
[1641850085011,4.0,134.97,134.9,27.66479]
[1641850085712,4.0,134.96,134.87,15.66161984]
[1641850086013,1.852,134.96,134.87,15.66161984]
[1641850086213,4.0,134.93,134.87,15.66161984]
[1641850086912,4.0,134.93,134.86,2.50960576]
[1641850087315,4.0,134.95,134.86,2.50960576]
[1641850087515,1.853,134.94,134.88,27.66479]
[1641850087717,1.853,134.95,134.88,27.66479]
[1641850087918,4.19595004,134.97,134.88,27.66479]
[1641850088619,4.19595004,134.97,134.89,2.50960576]
[1641850088818,4.19595004,134.97,134.89,11.66960576]
[1641850089519,4.19595004,134.97,134.93,27.66479]
[1641850089719,4.19595004,134.97,134.93,34.46079]
[1641850091119,5.852,134.99,134.93,34.46079]
[1641850091619,4.19593455,134.96,134.93,34.46079]
[1641850093422,4.19593455,134.96,134.94,3.68702677]
[1641850093822,4.19593455,134.96,134.94,6.19804746]
[1641850094522,4.19593455,134.96,134.94,3.68702677]
[1641850094923,29.51679,135.02,134.94,3.68702677]
[1641850095125,27.66479,135.02,134.94,3.68702677]
[1641850095322,47.32640984,135.02,134.94,3.68702677]
[1641850095724,43.32640984,135.02,134.94,3.68702677]
[1641850095924,2.70919549,135.01,134.94,3.68702677]
[1641850096724,2.70919549,135.01,134.93,55.32958]
[1641850096924,2.70919549,135.01,134.94,3.68638887]
[1641850098926,6.904376,135.01,134.94,3.68638887]
[1641850099227,22.56599584,135.01,134.94,3.68638887]
[1641850099930,2.70919549,135.0,134.95,2.51477439]
[1641850100331,11.75419549,135.0,134.95,2.51477439]
[1641850100530,5.852,134.99,134.95,2.51477439]
[1641850100730,4.0,134.98,134.95,2.51477439]
[1641850101033,1.852,134.99,134.95,2.51477439]
[1641850101330,4.0,134.97,134.95,2.51477439]
[1641850101531,12.56,134.97,134.94,3.68653809]
[1641850103231,8.56,134.97,134.94,3.68653809]
[1641850103635,12.56,134.97,134.94,3.68653809]
[1641850103834,12.56,134.97,134.91,27.66479]
[1641850104233,12.56,134.97,134.96,3.68723578]
[1641850105234,8.56,134.97,134.96,3.68723578]
[1641850105835,29.51679,134.99,134.96,3.68723578]
[1641850106035,27.66479,134.99,134.96,3.68723578]
[1641850106237,15.66161984,135.0,134.96,10.88023578]
[1641850106435,15.66161984,135.01,134.96,10.88023578]
[1641850107035,6.71254395,135.02,134.96,10.88023578]
[1641850107237,1.851,135.01,134.96,10.88023578]
[1641850107434,11.052,135.01,134.96,3.68723578]
[1641850107835,38.71679,135.01,134.93,15.66161984]
[1641850108035,38.71679,135.01,134.96,3.68718797]
[1641850108237,2.71254395,135.0,134.96,3.68718797]
[1641850108438,2.71254395,135.0,134.96,9.64618797]
[1641850109038,15.66161984,135.01,134.96,9.64618797]
[1641850109338,2.71254395,135.02,134.97,2.51520665]
[1641850109839,2.71254395,135.02,134.98,27.66479]
[1641850112740,2.71254395,135.02,134.98,31.66479]
[1641850112939,15.66161984,135.04,134.98,31.66479]
[1641850113141,15.66161984,135.04,134.99,1.851]
[1641850113343,15.66161984,135.04,134.99,8.206]
[1641850113541,15.66161984,135.07,134.99,12.206]
[1641850113941,15.66161984,135.07,135.01,9.9254389]
[1641850114141,15.66161984,135.07,135.03,27.66479]
[1641850114342,15.66161984,135.07,135.03,35.77779]
[1641850114541,15.66161984,135.07,135.03,39.77779]
[1641850114741,41.72965973,135.1,135.05,4.0]
[1641850114942,5.973e-05,135.1,135.06,1.85]
[1641850115143,27.66479,135.13,135.08,4.0]
[1641850115345,71.859848,135.14,135.08,4.0]
[1641850115543,10.71250129,135.11,135.09,4.0]
[1641850115743,1.29e-06,135.11,135.09,12.468]
[1641850115947,15.97034025,135.15,135.1,4.0]
[1641850116145,15.97034025,135.15,135.13,27.66479]
[1641850116344,15.97034025,135.15,135.13,36.10179]
[1641850116546,61.14734671,135.16,135.13,36.10179]
[1641850116946,27.66479,135.2,135.13,36.10179]
[1641850117344,29.51379,135.2,135.13,36.10179]
[1641850117645,33.51379,135.2,135.13,36.10179]
[1641850117845,31.66479,135.2,135.13,36.10179]
[1641850118045,4.0,135.19,135.13,36.10179]
[1641850118248,5.849,135.21,135.13,36.10179]
[1641850118447,1.849,135.21,135.13,36.10179]
[1641850119048,4.0,135.23,135.13,36.10179]
[1641850119250,16.73381586,135.28,135.14,4.0]
[1641850119251,4.0,135.25,135.14,4.0]
[1641850119448,4.0,135.24,135.14,1.849]
[1641850119647,4.0,135.24,135.13,60.10179]
[1641850120048,4.0,135.23,135.19,27.66479]
[1641850120248,4.0,135.23,135.13,36.10179]
[1641850120448,1.849,135.22,135.13,27.66479]
[1641850120651,4.0,135.24,135.13,27.66479]
[1641850120848,5.849,135.24,135.13,27.66479]
[1641850121050,4.0,135.21,135.13,27.66479]
[1641850121251,13.172,135.21,135.13,27.66479]
[1641850121850,4.18961952,135.2,135.13,27.66479]
[1641850122051,6.03861952,135.2,135.13,27.66479]
[1641850122852,6.03861952,135.2,135.14,3.6806182]
[1641850123150,4.18961952,135.2,135.14,3.6806182]
[1641850124053,4.18961952,135.2,135.16,27.66479]
[1641850125254,4.0,135.2,135.14,3.6806182]
[1641850125455,1.849,135.19,135.14,3.6806182]
[1641850125854,6.03858186,135.19,135.14,3.6806182]
[1641850126056,10.03858186,135.19,135.14,3.6806182]
[1641850126255,4.0,135.18,135.14,3.6806182]
[1641850126456,4.0,135.18,135.13,27.66479]
[1641850126656,4.0,135.18,135.15,3.68039912]
[1641850127155,4.0,135.17,135.15,3.68039912]
[1641850127358,10.271,135.17,135.15,3.68039912]
[1641850128057,6.271,135.17,135.15,3.68039912]
[1641850129261,5.849,135.16,135.09,27.66479]
[1641850129560,4.0,135.13,135.09,27.66479]
[1641850129761,4.0,135.13,135.04,5.92390915]
[1641850129762,11.728,135.13,135.04,5.92390915]
[1641850130060,7.728,135.13,135.04,5.92390915]
[1641850130260,7.728,135.13,135.06,27.66479]
[1641850130863,31.66479,135.15,135.06,27.66479]
[1641850131264,4.0,135.13,135.06,27.66479]
[1641850131962,1.85,135.14,135.06,27.66479]
[1641850132164,1.85,135.14,135.09,27.66479]
[1641850132362,1.85,135.17,135.09,35.07379]
[1641850132562,5.85,135.17,135.09,35.07379]
[1641850132763,4.0,135.16,135.09,35.07379]
[1641850132963,4.0,135.15,135.1,3.68270164]
[1641850133463,4.19161747,135.12,135.1,3.68270164]
[1641850136168,4.19161747,135.12,135.09,55.32958]
[1641850136567,4.19161747,135.12,135.11,2.94616546]
[1641850136769,4.0,135.16,135.11,2.94616546]
[1641850136968,4.0,135.15,135.11,2.94616546]
[1641850137169,4.0,135.16,135.11,2.94616546]
[1641850138172,4.0,135.15,135.11,2.94616546]
[1641850138371,4.0,135.16,135.11,2.94616546]
[1641850138772,1.85,135.17,135.11,2.94616546]
[1641850138972,4.0,135.14,135.11,6.546e-05]
[1641850139172,9.92042186,135.13,135.11,6.546e-05]
[1641850139372,11.77042186,135.13,135.11,6.546e-05]
[1641850139677,4.0,135.12,135.11,6.546e-05]
[1641850139878,5.85,135.12,135.11,6.546e-05]
[1641850140083,5.85,135.12,135.0,81.6355]
[1641850140275,5.851,135.11,135.0,81.6355]
[1641850140476,4.0,135.11,135.0,81.6355]
[1641850140680,5.851,135.12,135.0,81.6355]
[1641850140877,5.851,135.12,135.04,27.66479]
[1641850141580,1.851,135.12,135.04,27.66479]
[1641850143681,27.66479,135.13,135.04,27.66479]
[1641850144985,1.85,135.15,135.05,4.0]
[1641850145283,41.40731077,135.17,135.06,5.92296399]
[1641850145883,15.63613248,135.15,135.06,5.92296399]
[1641850146083,15.63613248,135.15,135.05,72.8835]
[1641850146383,15.63613248,135.15,135.05,71.0335]
[1641850146585,21.48613248,135.16,135.05,71.0335]
[1641850146784,4.0,135.15,135.05,71.0335]
[1641850146983,4.0,135.15,135.08,27.66479]
[1641850147186,5.85,135.15,135.08,27.66479]
[1641850147484,21.48613248,135.15,135.08,27.66479]
[1641850147685,19.63613248,135.15,135.08,27.66479]
[1641850149090,4.0,135.11,135.04,27.66479]
[1641850149287,10.634,135.11,135.02,15.63613248]
[1641850149886,4.0,135.09,135.02,15.63613248]
[1641850150088,1.851,135.1,135.02,15.63613248]
[1641850150290,5.851,135.1,135.01,27.66479]
[1641850150689,1.851,135.1,135.01,27.66479]
[1641850151088,29.51579,135.1,135.01,27.66479]
[1641850152488,27.66479,135.1,135.01,27.66479]
[1641850153092,27.66479,135.1,135.03,4.0]
[1641850153290,15.63613248,135.12,135.05,4.0]
[1641850153491,15.63613248,135.12,135.03,11.226]
[1641850153689,15.63613248,135.12,135.03,15.0004147]
[1641850154089,15.63613248,135.12,135.03,19.0004147]
[1641850154490,23.33917426,135.14,135.04,18.15161989]
[1641850155292,23.33917426,135.14,135.06,27.66479]
[1641850155492,2.70072284,135.13,135.06,34.14779]
[1641850155693,2.70072284,135.13,135.07,4.0]
[1641850155891,2.70072284,135.13,135.08,4.0]
[1641850156093,38.97530674,135.14,135.08,4.0]
[1641850156292,23.33917426,135.14,135.1,4.0]
[1641850156492,15.63613248,135.16,135.1,9.927]
[1641850156693,15.63613248,135.16,135.11,4.0]
[1641850156992,41.40731077,135.19,135.11,5.85]
[1641850157193,41.40731077,135.19,135.18,27.66479]
[1641850157395,41.40731077,135.19,135.18,34.75579]
[1641850157693,41.40731077,135.24,135.18,34.75579]
[1641850159095,2.69148739,135.26,135.18,34.75579]
[1641850159294,2.69148739,135.26,135.21,27.66479]
[1641850159996,2.69148739,135.26,135.18,27.66479]
[1641850160196,6.69148739,135.26,135.18,27.66479]
[1641850160395,1.848,135.25,135.18,27.66479]
[1641850160594,5.848,135.25,135.18,27.66479]
[1641850160797,1.848,135.25,135.18,27.66479]
[1641850161199,2.69148739,135.24,135.18,27.66479]
[1641850163197,1.848,135.28,135.21,27.66479]
[1641850163400,1.848,135.28,135.22,4.18830788]
[1641850163999,5.848,135.28,135.22,4.18830788]
[1641850164200,5.848,135.29,135.22,4.18830788]
[1641850164900,4.0,135.28,135.22,4.18830788]
[1641850165100,5.848,135.29,135.22,4.18830788]
[1641850167003,5.848,135.29,135.21,27.66479]
[1641850167402,5.848,135.29,135.23,4.18791371]
[1641850169204,4.0,135.28,135.23,4.18791371]
[1641850169604,4.0,135.26,135.23,4.18791371]
[1641850169805,11.71,135.26,135.23,4.18791371]
[1641850170507,4.0,135.25,135.23,4.18791371]
[1641850171111,7.71,135.26,135.18,27.66479]
[1641850171312,5.848,135.27,135.24,4.18784596]
[1641850174116,1.848,135.27,135.24,4.18784596]
[1641850174316,6.75149408,135.28,135.24,4.18784596]
[1641850174616,10.75149408,135.28,135.24,4.18784596]
[1641850174817,10.75149408,135.28,135.24,6.483]
[1641850175217,4.0,135.27,135.24,6.483]
[1641850175418,0.83763292,135.26,135.24,6.483]
[1641850176019,0.83763292,135.26,135.18,27.66479]
[1641850177520,4.0,135.25,135.18,27.66479]
[1641850177920,5.848,135.25,135.18,27.66479]
[1641850178119,5.848,135.25,135.16,27.66479]
[1641850178120,4.0,135.22,135.16,27.66479]
[1641850178319,12.765,135.22,135.16,27.66479]
[1641850178522,8.765,135.22,135.16,27.66479]
[1641850180221,8.765,135.22,135.19,4.18813478]
[1641850180421,28.50241631,135.25,135.19,4.18813478]
[1641850181325,28.50241631,135.25,135.19,31.85292478]
[1641850181822,28.50241631,135.25,135.19,4.18813478]
[1641850181823,5.848,135.24,135.19,4.18813478]
[1641850182023,14.911,135.24,135.19,4.18813478]
[1641850182423,4.0,135.23,135.19,4.18813478]
[1641850182623,4.0,135.22,135.19,4.18813478]
[1641850182825,1.849,135.21,135.19,4.18813478]
[1641850183023,11.526,135.21,135.19,4.18813478]
[1641850183324,10.51484887,135.21,135.19,4.18813478]
[1641850183724,10.51484887,135.21,135.16,27.66479]
[1641850184124,10.51484887,135.21,135.2,4.18844227]
[1641850184326,0.83784887,135.21,135.2,4.18844227]
[1641850184526,3.53202487,135.21,135.2,4.18844227]
[1641850185325,0.83784887,135.21,135.2,4.18844227]
[1641850186926,4.0,135.24,135.2,4.18844227]
[1641850187128,5.848,135.24,135.2,4.18844227]
[1641850187328,2.69987203,135.21,135.2,4.18844227]
[1641850187728,2.69987203,135.21,135.16,27.66479]
[1641850187927,2.69987203,135.21,135.2,4.18886771]
[1641850188128,18.35564047,135.22,135.2,4.18886771]
[1641850189133,2.69987203,135.22,135.2,4.18886771]
[1641850190436,17.50476844,135.23,135.2,4.18886771]
[1641850190437,15.65576844,135.23,135.2,4.18886771]
[1641850191445,15.65576844,135.23,135.2,27.66479]
[1641850191640,27.66479,135.25,135.2,31.85383637]
[1641850192140,15.65576844,135.27,135.2,31.85383637]
[1641850192741,17.50376844,135.27,135.2,31.85383637]
[1641850192939,21.50376844,135.27,135.2,31.85383637]
[1641850193141,15.65576844,135.26,135.2,31.85383637]